bitfinex/quotes_ETHUSD_20250130
["timestamp","ask_amount","ask_price","bid_price","bid_amount"]
[1738197367265,3.22011,3105.5,3105.1,0.24115895]
[1738197367466,3.22011,3105.5,3105.2,0.41359466]
[1738197368287,3.831,3106.0,3105.3,0.8153]
[1738197368588,6.43994,3105.7,3105.3,0.8153]
[1738197368790,3.21999,3105.6,3105.3,0.8153]
[1738197369366,3.21984,3105.8,3105.3,0.8153]
[1738197369704,0.08162457,3105.7,3105.4,0.30044595]
[1738197369857,0.08162457,3105.7,3105.4,0.77542001]
[1738197370052,3.21994,3105.7,3105.4,0.30044595]
[1738197370258,4.03249,3105.5,3105.4,0.30044595]
[1738197370660,4.11411464,3105.5,3105.4,0.30044595]
[1738197370861,4.11411464,3105.5,3104.9,0.30044595]
[1738197371077,3.22039,3105.3,3104.9,0.47144272]
[1738197371279,3.30176464,3105.5,3104.9,0.47144272]
[1738197371584,3.22014,3105.5,3105.0,3.2206]
[1738197371782,0.0815672,3105.4,3104.9,0.47144272]
[1738197372523,3.3017872,3105.4,3104.9,0.47144272]
[1738197372816,3.3017872,3105.4,3105.0,0.24098946]
[1738197373115,0.0815672,3105.4,3105.0,0.24098946]
[1738197373312,0.0815672,3105.4,3105.1,0.39331422]
[1738197373511,3.3017672,3105.4,3105.1,0.39331422]
[1738197373683,3.3017672,3105.4,3105.0,0.54143541]
[1738197373886,0.0815672,3105.4,3105.0,0.54143541]
[1738197374237,0.0815672,3105.4,3105.0,3.76198541]
[1738197374781,3.22013,3105.5,3105.0,0.30044595]
[1738197374939,0.08183744,3105.3,3105.0,0.30044595]
[1738197375154,0.08186983,3105.4,3105.1,0.30044595]
[1738197375308,3.0,3106.1,3105.1,0.30044595]
[1738197375309,3.30217586,3105.2,3105.1,0.30044595]
[1738197375642,3.30221266,3105.2,3105.1,0.30044595]
[1738197376701,3.30221266,3105.2,3104.5,0.30044595]
[1738197376903,3.22064,3105.0,3104.5,1.26867529]
[1738197377421,3.22102,3104.6,3104.5,0.54149869]
[1738197377626,3.30196355,3104.6,3104.5,0.54149869]
[1738197378003,3.30196355,3104.6,3104.5,0.24105274]
[1738197378327,3.22126,3104.4,3103.8,3.0]
[1738197378541,3.22126,3104.4,3103.8,7.247365]
[1738197378734,3.30202057,3104.3,3103.8,4.025525]
[1738197379242,3.30202057,3104.3,3104.0,0.24112861]
[1738197379443,0.08068057,3104.3,3104.0,0.24112861]
[1738197379937,3.22125,3104.4,3103.8,4.025525]
[1738197380143,0.08048371,3104.2,3103.8,4.025525]
[1738197380309,0.08053074,3104.3,3103.9,0.8058955]
[1738197380509,0.08043668,3104.1,3103.9,0.8058955]
[1738197380721,3.22134,3104.3,3103.9,0.8058955]
[1738197380917,0.08038965,3104.0,3103.9,0.8058955]
[1738197381128,3.22123,3104.5,3103.9,0.8058955]
[1738197381439,3.22107,3104.6,3103.9,0.8058955]
[1738197381609,0.08089284,3104.5,3104.0,3.60221955]
[1738197381806,0.08089284,3104.5,3104.3,4.05184]
[1738197382126,3.22043,3105.2,3104.6,3.22101]
[1738197383508,3.22067,3105.0,3104.7,0.30140559]
[1738197384644,3.22081,3104.8,3104.7,0.30140559]
[1738197384847,3.30120015,3104.8,3104.7,0.30140559]
[1738197385539,3.30120015,3104.8,3104.4,0.24111364]
[1738197385540,3.22109,3104.6,3104.4,0.24111364]
[1738197385837,0.08049327,3104.5,3104.4,0.24111364]
[1738197386207,0.08049327,3104.5,3104.0,0.24111364]
[1738197386445,0.08049327,3104.5,3104.0,0.66781]
[1738197386939,3.30163327,3104.5,3104.0,0.24111364]
[1738197387137,0.08049327,3104.5,3104.0,0.24111364]
[1738197387341,0.08049327,3104.5,3104.4,0.30134668]
[1738197388746,7.2377,3104.9,3104.4,0.30134668]
[1738197389245,0.08063431,3104.8,3104.4,0.30134668]
[1738197389550,3.22095,3104.7,3104.4,0.30134668]
[1738197389948,0.08054029,3104.6,3104.4,0.30134668]
[1738197390655,3.22113,3104.5,3104.4,0.30134668]
[1738197391133,3.30162327,3104.5,3104.4,0.30134668]
[1738197391344,3.30162327,3104.5,3104.2,0.24111364]
[1738197392350,3.30162327,3104.5,3104.0,0.24111364]
[1738197392751,0.08049327,3104.5,3104.0,3.46269364]
[1738197392916,0.08049327,3104.5,3104.3,0.3011881]
[1738197393117,3.22095,3104.7,3104.3,0.3011881]
[1738197393319,0.08023441,3104.4,3104.3,0.3011881]
[1738197393552,3.22103,3104.6,3104.3,0.3011881]
[1738197393757,0.08026228,3104.4,3104.3,0.3011881]
[1738197394252,4.01684,3104.9,3104.3,0.3011881]
[1738197394457,0.08045037,3104.8,3104.3,3.5224581]
[1738197395126,0.08045037,3104.8,3104.3,0.3011881]
[1738197395322,3.22113,3104.5,3104.4,0.24111364]
[1738197395656,3.30158701,3104.5,3104.4,0.54230174]
[1738197396434,3.30158701,3104.5,3104.4,0.3011881]
[1738197397462,0.08045701,3104.5,3104.4,0.3011881]
[1738197397619,0.08045701,3104.5,3104.4,1.1246881]
[1738197397820,3.22075,3104.9,3104.4,1.55928891]
[1738197398044,0.08009123,3104.8,3104.4,1.55928891]
[1738197398247,0.08009123,3104.8,3104.4,0.3011881]
[1738197398248,3.30094123,3104.8,3104.4,0.3011881]
[1738197398554,3.22099,3104.7,3104.5,0.24111364]
[1738197398959,0.07999719,3104.6,3104.5,0.54230174]
[1738197399525,0.07999719,3104.6,3104.5,3.76343174]
[1738197399849,3.99817,3105.2,3104.5,4.58566174]
[1738197400049,3.30083701,3105.1,3104.5,4.58566174]
[1738197400220,0.08032701,3105.1,3104.5,1.36460174]
[1738197400425,3.22061,3105.0,3104.5,1.36460174]
[1738197400625,3.30109401,3104.9,3104.5,0.54230174]
[1738197400820,0.08037401,3104.9,3104.5,0.54230174]
[1738197401052,3.22058,3105.1,3104.6,0.3011881]
[1738197401239,0.08042102,3105.0,3104.6,0.3011881]
[1738197401559,0.08042102,3105.0,3104.6,0.54230174]
[1738197402660,0.08042102,3105.0,3104.7,0.3011881]
[1738197403454,3.30111102,3105.0,3104.7,0.3011881]
[1738197403760,3.22081,3104.8,3104.6,0.24111364]
[1738197403962,3.22081,3104.8,3104.3,6.22133]
[1738197404166,0.08039148,3104.7,3104.3,6.22133]
[1738197404364,0.08039148,3104.7,3104.5,3.22106]
[1738197404656,7.21862,3105.2,3104.5,3.22106]
[1738197404657,0.08034447,3104.6,3104.5,3.22106]
[1738197404857,3.22061,3105.0,3104.5,3.22106]
[1738197405044,0.08053429,3104.9,3104.5,3.22106]
[1738197405252,0.08053429,3104.9,3104.6,0.301464]
[1738197406365,3.99815,3105.2,3104.7,0.3522524]
[1738197406530,0.08034974,3104.8,3104.7,0.6537164]
[1738197406731,7.21864,3105.2,3104.7,0.89488672]
[1738197406932,0.08034974,3104.8,3104.7,0.89488672]
[1738197407134,3.99815,3105.2,3104.7,0.89488672]
[1738197407333,0.08034974,3104.8,3104.7,0.54263432]
[1738197407566,3.22058,3105.1,3104.7,0.54263432]
[1738197407746,0.08034974,3104.8,3104.7,0.54263432]
[1738197407937,3.22058,3105.1,3104.7,0.54263432]
[1738197408136,0.08034974,3104.8,3104.7,0.54263432]
[1738197408658,3.22058,3105.1,3104.7,0.54263432]
[1738197408859,0.08044377,3105.0,3104.7,0.54263432]
[1738197409181,0.08044377,3105.0,3104.9,3.22071]
[1738197409572,3.22002,3105.6,3105.0,3.2206]
[1738197409871,3.2201,3105.5,3104.9,3.22071]
[1738197410680,3.22023,3105.4,3104.9,3.22071]
[1738197411074,3.22023,3105.4,3105.0,0.54263432]
[1738197411680,3.22012,3105.5,3105.0,0.54263432]
[1738197411875,3.22021,3105.4,3105.0,0.54263432]
[1738197412178,3.22021,3105.4,3105.0,0.301464]
[1738197412476,6.4403,3105.5,3105.0,0.301464]
[1738197412652,3.22012,3105.5,3105.0,0.301464]
[1738197412857,3.22012,3105.5,3105.1,0.24105725]
[1738197413071,3.22012,3105.5,3105.1,0.54252125]
[1738197413882,0.8075,3105.8,3105.1,0.54252125]
[1738197414047,3.21974,3105.9,3105.3,3.22026]
[1738197414682,0.07826986,3105.8,3105.3,3.22026]
[1738197415357,0.07826986,3105.8,3105.2,1.33132125]
[1738197415577,0.07826986,3105.8,3105.4,3.46118725]
[1738197415753,3.21964,3106.0,3105.4,3.46118725]
[1738197416284,0.07859547,3105.9,3105.4,3.46118725]
[1738197416656,0.07859547,3105.9,3105.5,0.301464]
[1738197416862,3.21968,3105.9,3105.5,0.301464]
[1738197417063,0.07854848,3105.8,3105.5,0.301464]
[1738197418465,0.07854848,3105.8,3105.5,0.54252125]
[1738197420070,3.21998,3105.7,3105.5,0.24105725]
[1738197420262,0.07866346,3105.6,3105.4,0.24105725]
[1738197420488,3.21968,3105.9,3105.4,0.66606897]
[1738197420693,3.21952,3106.1,3105.5,0.8242]
[1738197420991,3.21957,3106.0,3105.5,0.8242]
[1738197421285,3.21952,3106.1,3105.6,3.21996]
[1738197421669,3.21952,3106.1,3105.6,3.46101725]
[1738197421868,6.43908,3106.1,3105.6,0.24105725]
[1738197422055,3.21958,3106.0,3105.6,0.24105725]
[1738197422479,3.21952,3106.1,3105.6,0.24105725]
[1738197422681,3.21952,3106.1,3105.6,0.99160398]
[1738197423195,3.21942,3106.2,3105.6,4.21156398]
[1738197423371,3.21947,3106.1,3105.6,4.21156398]
[1738197423569,3.21958,3106.0,3105.6,0.99160398]
[1738197423758,3.21947,3106.1,3105.6,0.99160398]
[1738197423963,3.2197,3105.9,3105.7,0.30063723]
[1738197424591,6.43901,3106.1,3105.7,0.30063723]
[1738197424756,3.2196,3106.0,3105.7,0.30063723]
[1738197425558,0.015,3106.5,3105.6,0.30063723]
[1738197425760,3.21988,3105.7,3105.6,0.30063723]
[1738197427499,3.21988,3105.7,3105.3,0.30063723]
[1738197427696,3.21988,3105.7,3105.4,0.42920172]
[1738197427901,3.21988,3105.7,3105.3,0.54120348]
[1738197428096,0.07616822,3105.6,3105.3,0.54120348]
[1738197428462,3.21988,3105.7,3105.3,0.54120348]
[1738197428667,0.07616822,3105.6,3105.3,0.54120348]
[1738197429002,3.21988,3105.7,3105.3,0.54120348]
[1738197429186,3.21988,3105.7,3105.3,0.97242383]
[1738197429370,0.07616822,3105.6,3105.3,0.97242383]
[1738197429564,0.07616822,3105.6,3105.4,0.30063723]
[1738197429767,3.21988,3105.7,3105.4,0.30063723]
[1738197430168,0.07616822,3105.6,3105.4,0.30063723]
[1738197430398,0.07616822,3105.6,3105.4,0.79701861]
[1738197430591,3.21988,3105.7,3105.4,0.79701861]
[1738197430903,0.07616126,3105.6,3105.5,0.30063723]
[1738197431401,3.21988,3105.7,3105.5,0.30063723]
[1738197431697,0.073586,3105.6,3105.5,0.30063723]
[1738197432204,3.21988,3105.7,3105.4,0.24056625]
[1738197432590,0.07358948,3105.6,3105.4,0.24056625]
[1738197432994,0.07358948,3105.6,3105.4,0.70688191]
[1738197433180,0.07358948,3105.6,3105.5,3.22009]
[1738197433389,3.2195,3106.1,3105.6,0.7799]
[1738197433664,0.07405918,3106.0,3105.6,0.7799]
[1738197434270,0.07405918,3106.0,3105.6,3.99985]
[1738197434495,0.07405918,3106.0,3105.7,0.45413302]
[1738197435075,6.43864,3106.3,3105.7,0.45413302]
[1738197435279,0.07415311,3106.2,3105.7,0.45413302]
[1738197435486,3.29354311,3106.2,3105.8,0.24056625]
[1738197436405,3.29354311,3106.2,3105.9,0.30104141]
[1738197436580,0.07415311,3106.2,3105.9,0.30104141]
[1738197436785,0.07415311,3106.2,3106.1,0.7574]
[1738197436985,3.21891,3106.7,3106.1,0.7574]
[1738197437191,0.07429584,3106.2,3106.1,0.7574]
[1738197437397,3.21891,3106.7,3106.1,0.7574]
[1738197437572,3.21891,3106.7,3105.9,0.30104141]
[1738197437573,0.07429584,3106.2,3105.9,0.30104141]
[1738197437775,0.07429584,3106.2,3106.0,1.49765314]
[1738197438023,3.21913,3106.5,3106.2,0.24093954]
[1738197439625,3.21913,3106.5,3106.0,5.01825455]
[1738197440727,3.21913,3106.5,3106.1,0.30104141]
[1738197441128,3.21913,3106.5,3106.1,0.54199778]
[1738197441438,0.159637,3107.0,3106.5,3.21905]
[1738197441572,0.159637,3107.0,3106.5,6.13866108]
[1738197441777,0.159637,3107.0,3106.6,3.21893]
[1738197441978,0.159637,3107.0,3106.7,0.8305]
[1738197442487,0.159637,3107.0,3106.7,4.04931]
[1738197443205,0.159637,3107.0,3106.7,0.8305]
[1738197443513,0.159637,3107.0,3106.7,1.25971089]
[1738197443681,0.159637,3107.0,3106.8,3.21874]
[1738197444318,0.159637,3107.0,3106.8,3.51978141]
[1738197444493,0.159637,3107.0,3106.9,3.21864]
[1738197444813,0.23465658,3107.0,3106.9,3.21864]
[1738197445011,0.23465658,3107.0,3106.9,3.69657923]
[1738197445215,0.23465658,3107.0,3106.9,3.93726788]
[1738197445793,0.23465658,3107.0,3106.9,4.75236788]
[1738197446145,0.159637,3107.0,3106.9,5.05340929]
[1738197447117,0.23509575,3107.0,3106.9,1.83476929]
[1738197447505,0.23509575,3107.0,3106.9,1.35683006]
[1738197447692,0.159637,3107.0,3106.9,0.54173006]
[1738197447893,0.23512289,3107.0,3106.9,0.54173006]
[1738197448705,0.23512289,3107.0,3106.9,0.30104141]
[1738197449424,3.45365289,3107.0,3106.9,0.30104141]
[1738197449583,0.23512289,3107.0,3106.9,0.30104141]
[1738197449934,0.23512289,3107.0,3106.8,0.30104141]
[1738197450142,0.23512289,3107.0,3106.8,0.67710942]
[1738197450507,0.23512289,3107.0,3106.9,0.8215]
[1738197452418,0.23512289,3107.0,3106.9,4.04014]
[1738197452626,0.23512289,3107.0,3106.9,9.95975108]
[1738197452961,0.159637,3107.0,3106.9,9.95975108]
[1738197453131,0.159637,3107.0,3106.9,11.27759919]
[1738197454005,0.159637,3107.0,3106.9,11.57766482]
[1738197454231,0.159637,3107.0,3106.9,11.81771733]
[1738197455163,0.159637,3107.0,3106.9,12.71332895]
[1738197455312,0.159637,3107.0,3106.9,9.79371787]
[1738197456012,0.159637,3107.0,3106.9,10.09371573]
[1738197459637,0.159637,3107.0,3106.9,10.08621573]
[1738197460443,0.159637,3107.0,3106.9,8.89803848]
[1738197460646,0.159637,3107.0,3106.9,0.54005037]
[1738197461035,0.23309393,3107.0,3106.9,0.54005037]
[1738197461436,0.22898977,3107.0,3106.9,0.54005037]
[1738197462343,0.22898977,3107.0,3106.9,0.29999786]
[1738197463630,0.22898977,3107.0,3106.8,0.29999786]
[1738197464027,0.22898977,3107.0,3106.8,3.51870786]
[1738197464234,0.22898977,3107.0,3106.9,3.21864]
[1738197464433,0.22898977,3107.0,3106.8,0.75196471]
[1738197464645,0.22898977,3107.0,3106.8,0.29999786]
[1738197465540,0.22898977,3107.0,3106.8,0.54015849]
[1738197466355,0.22898977,3107.0,3106.9,0.29999786]
[1738197467548,0.22898977,3107.0,3106.9,0.54015849]
[1738197469056,0.22898977,3107.0,3106.9,0.29999786]
[1738197469262,4.23551977,3107.0,3106.9,0.29999786]
[1738197470432,1.01698977,3107.0,3106.9,0.29999786]
[1738197470880,1.01698977,3107.0,3106.6,3.21894]
[1738197471165,1.01698977,3107.0,3106.6,3.88675506]
[1738197471351,1.01698977,3107.0,3106.7,0.24016063]
[1738197472364,0.22898977,3107.0,3106.7,0.24016063]
[1738197472787,0.22898977,3107.0,3106.8,0.24016063]
[1738197473125,0.22898977,3107.0,3106.8,0.54125208]
[1738197474430,0.22898977,3107.0,3106.9,0.24016063]
[1738197475164,0.22898977,3107.0,3106.9,0.54125208]
[1738197477147,3.44751977,3107.0,3106.9,0.54125208]
[1738197477749,4.65075175,3107.0,3106.9,0.54125208]
[1738197478963,4.65075175,3107.0,3106.9,0.30109145]
[1738197479670,3.21882,3106.8,3106.2,3.21935]
[1738197479885,0.99928977,3107.0,3106.2,3.21935]
[1738197480038,4.14445284,3107.0,3106.4,3.21915]
[1738197480241,4.14445284,3107.0,3106.3,0.24016063]
[1738197480242,3.21904,3106.6,3106.3,0.24016063]
[1738197480641,0.07006337,3106.5,3106.3,0.24016063]
[1738197481195,3.28916337,3106.5,3106.3,0.24016063]
[1738197481476,0.8299,3106.4,3106.3,0.24016063]
[1738197481794,0.89994559,3106.4,3105.9,4.03529]
[1738197481996,4.11912559,3106.4,3106.0,0.725501]
[1738197482201,3.21939,3106.2,3105.6,4.04383]
[1738197482339,3.21939,3106.2,3105.6,7.26376]
[1738197482675,0.06978295,3106.1,3105.8,3.21977]
[1738197482859,0.06978295,3106.1,3106.0,3.21957]
[1738197483179,4.20402284,3107.0,3106.4,3.21909]
[1738197483675,3.28867283,3106.9,3106.4,3.21909]
[1738197483884,0.07002283,3106.9,3106.5,3.21903]
[1738197484090,0.07002283,3106.9,3106.6,0.643812]
[1738197484456,0.07002283,3106.9,3106.5,3.21903]
[1738197485697,0.07002283,3106.9,3106.5,2.91961108]
[1738197485868,0.07002283,3106.9,3106.8,3.21874]
[1738197486062,0.07002283,3106.9,3106.8,6.13835108]
[1738197486408,0.15553284,3107.0,3106.9,3.21864]
[1738197486614,0.15553284,3107.0,3106.9,4.15433911]
[1738197487092,0.15553284,3107.0,3106.9,8.50383911]
[1738197487591,0.15553284,3107.0,3106.9,8.51133911]
[1738197488191,0.15553284,3107.0,3106.9,9.05269821]
[1738197491360,8.69e-06,3107.0,3106.9,9.05269821]
[1738197491563,0.005,3108.4,3107.9,0.7917]
[1738197491808,0.005,3108.4,3108.2,6.13682108]
[1738197492095,0.06454779,3108.3,3108.2,7.07224819]
[1738197492270,0.005,3108.4,3108.2,7.07224819]
[1738197492589,0.005,3108.4,3108.3,3.21719]
[1738197493663,0.005,3108.4,3108.3,3.51793891]
[1738197494180,0.005,3108.4,3108.3,6.51793891]
[1738197494402,0.005,3108.4,3108.3,8.97640562]
[1738197495024,0.005,3108.4,3108.3,5.19870562]
[1738197495371,0.005,3108.4,3108.3,5.43840145]
[1738197498167,0.06840978,3108.4,3108.3,5.43840145]
[1738197498486,0.005,3108.4,3108.3,6.20260145]
[1738197498689,0.005,3108.4,3108.3,9.20260145]
[1738197499599,0.005,3108.4,3108.3,9.76010145]
[1738197500606,0.005,3108.4,3108.3,9.75260145]
[1738197501262,0.005,3108.4,3108.3,9.76010145]
[1738197502066,0.8077,3109.6,3109.3,3.21605]
[1738197502264,0.8077,3109.9,3109.3,3.21605]
[1738197502467,0.06396549,3109.5,3109.4,3.21605]
[1738197502778,0.8077,3109.9,3109.5,3.21593]
[1738197502977,0.8077,3109.9,3109.6,3.21583]
[1738197503568,0.8077,3109.9,3109.5,3.21593]
[1738197503976,0.8137,3110.2,3109.7,3.21567]
[1738197504182,4.02892,3110.2,3109.7,3.21567]
[1738197504791,0.06446027,3110.0,3109.5,6.4318]
[1738197504971,0.06446027,3110.0,3109.6,3.21582]
[1738197505171,0.06446027,3110.0,3109.7,3.21564]
[1738197506386,0.06446027,3110.0,3109.8,3.21563]
[1738197506573,0.06446027,3110.0,3109.7,3.21564]
[1738197507008,0.06446027,3110.0,3109.8,3.21563]
[1738197507370,0.06446027,3110.0,3109.9,9.13514108]
[1738197508095,0.06446027,3110.0,3109.9,6.21553]
[1738197508294,0.06446027,3110.0,3109.9,3.0]
[1738197509678,0.06446027,3110.0,3109.9,6.21553]
[1738197510317,0.06446027,3110.0,3109.9,3.0]
[1738197511010,0.06446027,3110.0,3109.6,2.91961108]
[1738197511189,0.7795,3109.9,3109.5,3.21595]
[1738197511783,0.06269488,3109.8,3109.5,3.21595]
[1738197511991,0.06269488,3109.8,3109.5,3.21588]
[1738197512190,3.27836488,3109.8,3109.2,3.21619]
[1738197512388,0.06269488,3109.8,3109.3,3.21613]
[1738197512601,3.27833488,3109.8,3109.2,3.21623]
[1738197512898,0.79003337,3109.8,3109.3,3.21615]
[1738197513106,0.06269488,3109.8,3109.3,3.21615]
[1738197513689,3.27835488,3109.8,3109.2,3.21619]
[1738197514077,0.06269488,3109.8,3109.3,3.21615]
[1738197514806,3.27833488,3109.8,3109.3,3.21615]
[1738197515625,0.7935,3109.6,3108.7,3.71371108]
[1738197515785,0.400924,3109.5,3109.0,3.21639]
[1738197515981,0.06212568,3109.5,3109.1,3.21629]
[1738197516427,0.06212568,3109.5,3109.1,3.51565142]
[1738197516609,0.06212568,3109.5,3109.1,0.29936142]
[1738197516979,0.06212568,3109.5,3109.1,3.51570142]
[1738197517719,0.06212568,3109.5,3109.3,3.21615]
[1738197518287,0.06212568,3109.5,3109.4,3.21605]
[1738197518625,0.7935,3109.8,3109.4,3.21605]
[1738197518831,0.06183318,3109.5,3109.4,3.21605]
[1738197519006,0.7935,3109.8,3109.4,3.21598]
[1738197519208,0.953137,3110.1,3109.6,3.21583]
[1738197519411,0.953137,3110.1,3109.8,3.21562]
[1738197519919,0.0622003,3110.0,3109.8,3.21562]
[1738197520622,0.0622003,3110.0,3109.9,0.29936142]
[1738197521023,0.0622003,3110.0,3109.9,3.86638456]
[1738197521341,0.159637,3110.1,3110.0,3.21543]
[1738197521698,0.22218883,3110.1,3110.0,3.21543]
[1738197521897,0.159637,3110.1,3110.0,3.21543]
[1738197522361,0.159637,3110.1,3110.0,3.51479142]
[1738197522519,0.159637,3110.1,3110.0,4.51493398]
[1738197522722,0.159637,3110.1,3110.0,4.75507986]
[1738197523108,0.159637,3110.1,3110.0,7.75507986]
[1738197523313,0.159637,3110.1,3110.0,8.53047986]
[1738197523515,0.159637,3110.1,3110.0,9.08047986]
[1738197524122,0.159637,3110.1,3110.0,8.53047986]
[1738197524304,3.21477,3110.7,3110.0,8.53047986]
[1738197524500,3.21477,3110.7,3110.1,3.2153]
[1738197524707,0.06313909,3110.6,3110.1,3.2153]
[1738197525235,0.06313909,3110.6,3110.1,6.4306]
[1738197525411,0.06313909,3110.6,3110.2,0.24014588]
[1738197525602,3.27795909,3110.6,3110.2,0.24014588]
[1738197525804,0.06313909,3110.6,3110.3,3.21508]
[1738197526101,3.21461,3110.8,3110.3,3.21508]
[1738197526302,0.06309225,3110.5,3110.3,3.51444142]
[1738197526514,0.7514,3110.9,3110.3,3.51444142]
[1738197526736,0.06304541,3110.4,3110.3,0.29936142]
[1738197526900,3.96597,3110.9,3110.3,0.29936142]
[1738197527106,0.06304541,3110.4,3110.3,0.29936142]
[1738197527728,0.7853,3110.4,3110.3,0.29936142]
[1738197527923,4.06336541,3110.4,3110.3,0.29936142]
[1738197528100,4.06336541,3110.4,3110.3,0.53961133]
[1738197529442,4.06336541,3110.4,3110.3,0.29936142]
[1738197533048,4.06336541,3110.4,3110.3,0.53990033]
[1738197535146,0.84834541,3110.4,3110.3,0.53990033]
[1738197536715,4.06336541,3110.4,3110.3,0.53990033]
[1738197537041,0.84834541,3110.4,3110.3,0.53990033]
[1738197539153,0.06304541,3110.4,3110.3,0.53990033]
[1738197539311,0.7851,3110.6,3110.3,0.53990033]
[1738197539652,0.06093402,3110.4,3110.3,0.53990033]
[1738197539814,0.7851,3110.6,3110.3,0.53990033]
[1738197540015,0.06093402,3110.4,3110.3,0.53990033]
[1738197540221,3.21497,3110.5,3110.3,0.53990033]
[1738197540417,0.46094102,3110.4,3110.3,0.53990033]
[1738197540618,0.06093402,3110.4,3110.3,0.53990033]
[1738197541416,3.27595402,3110.4,3110.3,0.53990033]
[1738197543150,3.27595402,3110.4,3110.3,0.29936142]
[1738197544417,0.06093402,3110.4,3110.3,0.29936142]
[1738197544630,3.96952,3110.4,3110.3,0.29936142]
[1738197544830,5.07033143,3110.4,3110.3,0.29936142]
[1738197545920,3.21512,3110.3,3109.6,0.24053891]
[1738197546121,3.21536,3110.1,3109.6,0.24053891]
[1738197546316,3.21564,3109.8,3109.6,0.24053891]
[1738197546529,4.03262109,3110.0,3109.7,0.24053891]
[1738197546748,3.97193,3110.0,3109.7,0.24053891]
[1738197547051,7.18745,3110.0,3109.7,0.24053891]
[1738197547253,0.7565,3110.0,3109.7,0.24053891]
[1738197547607,3.21508,3110.4,3109.8,3.96975]
[1738197547857,3.21508,3110.4,3109.8,4.27060802]
[1738197548037,3.21508,3110.4,3109.9,3.21553]
[1738197548734,3.21508,3110.4,3109.9,3.45626978]
[1738197549364,3.21508,3110.4,3110.0,0.30085802]
[1738197549718,3.21508,3110.4,3110.0,0.5415978]
[1738197549919,0.06061989,3110.3,3110.0,0.5415978]
[1738197550929,0.06061989,3110.3,3110.1,0.30085802]
[1738197551419,0.06061989,3110.3,3110.1,0.5415978]
[1738197552568,0.7764,3110.7,3110.2,0.24073978]
[1738197552770,0.7764,3110.7,3110.2,3.83165456]
[1738197552977,0.06106129,3110.6,3110.2,4.13251258]
[1738197553467,0.06106129,3110.6,3110.3,0.8226]
[1738197553672,3.21465,3110.8,3110.3,0.8226]
[1738197553848,0.06096524,3110.5,3110.3,0.8226]
[1738197554039,3.21465,3110.8,3110.3,1.55885104]
[1738197554234,4.01693,3111.0,3110.3,1.55885104]
[1738197554235,0.06084366,3110.4,3110.3,4.77394104]
[1738197554484,3.99101,3111.2,3110.6,3.21471]
[1738197554970,0.06137623,3111.1,3110.7,3.21469]
[1738197555193,0.06137623,3111.1,3110.6,3.21475]
[1738197555398,0.06137623,3111.1,3110.7,0.24073978]
[1738197556103,0.06137623,3111.1,3110.8,3.97186]
[1738197556262,0.06137623,3111.1,3110.9,3.21446]
[1738197556466,3.21399,3111.4,3110.8,3.97186]
[1738197556667,0.06173695,3111.0,3110.8,3.97186]
[1738197556871,3.21399,3111.4,3110.9,0.42125998]
[1738197557173,3.21412,3111.3,3110.9,0.42125998]
[1738197557484,3.21399,3111.4,3110.9,0.66199976]
[1738197558068,0.7908,3111.5,3110.9,0.66199976]
[1738197558268,3.21381,3111.6,3111.0,3.21439]
[1738197558471,4.0069,3111.8,3111.1,0.38763898]
[1738197558701,3.2136,3111.8,3111.3,0.8038]
[1738197558924,4.00669,3112.0,3111.3,4.01787]
[1738197559077,3.21347,3111.9,3111.3,4.01787]
[1738197559277,4.00669,3112.0,3111.4,3.21397]
[1738197559503,3.21339,3112.0,3111.4,3.937154]
[1738197559902,3.21339,3112.0,3111.5,0.24073978]
[1738197560198,4.00648,3112.2,3111.5,0.24073978]
[1738197560498,7.21971,3112.2,3111.5,3.45457978]
[1738197560664,3.2133,3112.1,3111.5,3.45457978]
[1738197561005,3.2133,3112.1,3111.6,0.41777638]
[1738197562305,0.8018,3112.7,3111.7,6.88645108]
[1738197562605,3.21315,3112.3,3111.7,0.7532]
[1738197563024,0.8018,3112.7,3112.0,3.21331]
[1738197563025,0.05722217,3112.2,3112.0,3.21331]
[1738197563208,3.21276,3112.6,3112.1,0.396651]
[1738197563728,3.21266,3112.7,3112.1,0.396651]
[1738197563890,4.01425,3112.9,3112.1,0.396651]
[1738197564230,3.21309,3112.3,3112.1,0.29962988]
[1738197564398,3.21281,3112.6,3112.1,0.29962988]
[1738197564605,3.21287,3112.5,3112.1,0.29962988]
[1738197564800,3.26967733,3112.5,3112.1,0.29962988]
[1738197565001,0.05680733,3112.5,3112.1,0.29962988]
[1738197565215,0.05680733,3112.5,3112.2,0.7987]
[1738197565423,3.21276,3112.6,3112.2,0.7987]
[1738197565718,0.05692732,3112.4,3112.2,0.7987]
[1738197565901,3.21274,3112.6,3112.2,0.7987]
[1738197566100,0.05688059,3112.3,3112.2,0.7987]
[1738197566307,3.21258,3112.8,3112.2,1.199895]
[1738197566488,0.05688059,3112.3,3112.2,1.199895]
[1738197566688,3.21258,3112.8,3112.2,1.199895]
[1738197566888,0.05688059,3112.3,3112.2,0.7987]
[1738197567384,3.21258,3112.8,3112.2,0.7987]
[1738197567588,0.05706751,3112.7,3112.2,0.7987]
[1738197567822,3.26970751,3112.7,3112.2,0.7987]
[1738197568023,0.05706751,3112.7,3112.2,0.7987]
[1738197568229,3.21275,3112.6,3111.9,3.21345]
[1738197568416,3.26977079,3112.6,3112.0,1.109445]
[1738197569318,3.26977079,3112.6,3112.0,4.322805]
[1738197569954,3.26977079,3112.6,3112.0,1.109445]
[1738197570197,3.21305,3112.3,3111.7,0.8017]
[1738197570316,3.21333,3112.1,3111.5,0.8017]
[1738197570636,3.21347,3111.9,3111.5,0.8017]
[1738197571006,0.05580076,3111.8,3111.5,0.8017]
[1738197571331,3.21337,3112.0,3111.5,0.8017]
[1738197571508,0.05557588,3111.7,3111.5,1.503267]
[1738197571703,3.21399,3111.4,3111.1,4.10815006]
[1738197571902,3.21396,3111.5,3110.6,3.21471]
[1738197572107,0.05538173,3111.3,3110.9,3.21447]
[1738197572341,3.26916888,3111.4,3110.9,3.21447]
[1738197572527,0.05508526,3111.2,3110.9,3.21447]
[1738197572729,0.05513207,3111.3,3110.9,3.937476]
[1738197572934,0.05503844,3111.1,3110.9,3.937476]
[1738197573128,3.21399,3111.4,3110.9,0.723006]
[1738197573309,0.05499162,3111.0,3110.9,0.723006]
[1738197573501,3.21399,3111.4,3110.9,0.723006]
[1738197573706,0.05488756,3111.0,3110.7,0.8009]
[1738197573907,4.0028,3111.2,3110.3,0.8009]